[Event "Titled Tuesday Blitz August 08 Early 2023"]
[White "Devaev, Alexander"]
[Black "Rendle, Thomas E"]
[WhiteFideId "4169395"]
[BlackFideId "408760"]
[WhiteElo "2456"]
[BlackElo "2711"]
[Result "0-1"]
[Round "5"]
[TimeControl "180+1"]
[Date "2023.08.08"]
[WhiteClock "0:00:00"]
[BlackClock "0:00:49"]
[Board "67"]

1. Nf3 {[%clk 0:02:59]}  d6 {[%clk 0:02:54]} 2. d4 {[%clk 0:02:59]}  f5 {[%clk 0:02:54]} 3. Bg5 {[%clk 0:02:57]}  Nd7 {[%clk 0:02:53]} 4. e3 {[%clk 0:02:35]}  Ngf6 {[%clk 0:02:52]} 5. Bd3 {[%clk 0:02:31]}  g6 {[%clk 0:02:51]} 6. Nbd2 {[%clk 0:02:17]}  c6 {[%clk 0:02:41]} 7. Bxf6 {[%clk 0:02:15]}  Nxf6 {[%clk 0:02:40]} 8. e4 {[%clk 0:02:16]}  fxe4 {[%clk 0:02:39]} 9. Nxe4 {[%clk 0:02:16]}  Bg7 {[%clk 0:02:40]} 10. Nxf6+ {[%clk 0:01:59]}  Bxf6 {[%clk 0:02:39]} 11. h3 {[%clk 0:01:57]}  Bf5 {[%clk 0:02:33]} 12. O-O {[%clk 0:01:33]}  Qd7 {[%clk 0:02:30]} 13. Re1 {[%clk 0:01:28]}  O-O-O {[%clk 0:02:29]} 14. Qd2 {[%clk 0:01:23]}  g5 {[%clk 0:02:17]} 15. c3 {[%clk 0:01:12]}  g4 {[%clk 0:02:12]} 16. Bxf5 {[%clk 0:01:12]}  Qxf5 {[%clk 0:02:11]} 17. hxg4 {[%clk 0:01:13]}  Qxg4 {[%clk 0:02:11]} 18. Qe3 {[%clk 0:01:14]}  Kb8 {[%clk 0:02:06]} 19. Qe6 {[%clk 0:01:14]}  Qg7 {[%clk 0:02:02]} 20. Qh3 {[%clk 0:01:12]}  h5 {[%clk 0:01:59]} 21. Re4 {[%clk 0:01:10]}  Rdg8 {[%clk 0:01:57]} 22. Rae1 {[%clk 0:01:09]}  Qh6 {[%clk 0:01:47]} 23. a4 {[%clk 0:01:03]}  Rg7 {[%clk 0:01:36]} 24. Kf1 {[%clk 0:00:42]}  Rhg8 {[%clk 0:01:33]} 25. g3 {[%clk 0:00:34]}  Qg6 {[%clk 0:01:21]} 26. Qd7 {[%clk 0:00:24]}  d5 {[%clk 0:01:14]} 27. R4e3 {[%clk 0:00:16]}  h4 {[%clk 0:01:14]} 28. gxh4 {[%clk 0:00:13]}  Qc2 {[%clk 0:01:09]} 29. R1e2 {[%clk 0:00:05]}  Qb1+ {[%clk 0:01:05]} 30. Re1 {[%clk 0:00:06]}  Qxb2 {[%clk 0:01:04]} 31. R1e2 {[%clk 0:00:06]}  Qa1+ {[%clk 0:01:03]} 32. Re1 {[%clk 0:00:07]}  Qxa4 {[%clk 0:01:04]} 33. h5 {[%clk 0:00:07]}  Rh7 {[%clk 0:00:56]} 34. Qf5 {[%clk 0:00:06]}  Qb5+ {[%clk 0:00:53]} 35. R3e2 {[%clk 0:00:04]}  Rgh8 {[%clk 0:00:52]} 36. Rb1 {[%clk 0:00:00]}  Qa6 {[%clk 0:00:49]} 0-1


[Site "https://www.chess.com"]

[Event "Titled Tuesday Blitz August 08 Early 2023"]
[White "Korchmar, Vasiliy"]
[Black "Mika, Tomasz"]
[WhiteFideId "24131750"]
[BlackFideId "1132970"]
[WhiteElo "2705"]
[BlackElo "2423"]
[Result "0-1"]
[Round "5"]
[TimeControl "180+1"]
[Date "2023.08.08"]
[WhiteClock "0:00:32"]
[BlackClock "0:00:33"]
[Board "69"]

1. e4 {[%clk 0:03:00]}  c6 {[%clk 0:02:59]} 2. d4 {[%clk 0:02:58]}  d5 {[%clk 0:02:59]} 3. exd5 {[%clk 0:02:58]}  cxd5 {[%clk 0:02:59]} 4. Bd3 {[%clk 0:02:58]}  Nc6 {[%clk 0:02:59]} 5. c3 {[%clk 0:02:57]}  g6 {[%clk 0:02:57]} 6. Nf3 {[%clk 0:02:55]}  Bf5 {[%clk 0:02:57]} 7. Bxf5 {[%clk 0:02:54]}  gxf5 {[%clk 0:02:57]} 8. Nbd2 {[%clk 0:02:50]}  e6 {[%clk 0:02:57]} 9. Nf1 {[%clk 0:02:50]}  Bd6 {[%clk 0:02:56]} 10. Ng3 {[%clk 0:02:50]}  Qc7 {[%clk 0:02:33]} 11. O-O {[%clk 0:02:42]}  Nf6 {[%clk 0:02:31]} 12. Bh6 {[%clk 0:02:23]}  Rg8 {[%clk 0:02:23]} 13. Qc1 {[%clk 0:02:07]}  Ne4 {[%clk 0:02:11]} 14. c4 {[%clk 0:01:59]}  dxc4 {[%clk 0:01:59]} 15. Qxc4 {[%clk 0:01:50]}  Rg6 {[%clk 0:01:56]} 16. Be3 {[%clk 0:01:44]}  Ne7 {[%clk 0:01:52]} 17. Qb3 {[%clk 0:01:36]}  Nd5 {[%clk 0:01:32]} 18. Rac1 {[%clk 0:01:29]}  Qd7 {[%clk 0:01:29]} 19. Qd3 {[%clk 0:01:04]}  Nxg3 {[%clk 0:01:22]} 20. hxg3 {[%clk 0:01:05]}  f4 {[%clk 0:01:18]} 21. gxf4 {[%clk 0:01:06]}  Bxf4 {[%clk 0:01:17]} 22. Qe4 {[%clk 0:00:43]}  f5 {[%clk 0:00:49]} 23. Qd3 {[%clk 0:00:42]}  Qg7 {[%clk 0:00:45]} 24. Ne1 {[%clk 0:00:37]}  Qh6 {[%clk 0:00:40]} 25. Qb5+ {[%clk 0:00:33]}  Kf8 {[%clk 0:00:35]} 26. Qxb7 {[%clk 0:00:32]}  Qh2# {[%clk 0:00:33]} 0-1


[Site "https://www.chess.com"]

[Event "Titled Tuesday Blitz August 08 Early 2023"]
[White "Hoang, Thi Bao Tram"]
[Black "GaiozNigalidze"]
[WhiteFideId "12401102"]
[WhiteElo "2701"]
[BlackElo "2362"]
[Result "0-1"]
[Round "5"]
[TimeControl "180+1"]
[Date "2023.08.08"]
[WhiteClock "0:00:11"]
[BlackClock "0:00:16"]
[Board "70"]

1. Nf3 {[%clk 0:02:54]}  Nf6 {[%clk 0:02:59]} 2. g3 {[%clk 0:02:54]}  d5 {[%clk 0:02:58]} 3. Bg2 {[%clk 0:02:54]}  c5 {[%clk 0:02:59]} 4. O-O {[%clk 0:02:52]}  e6 {[%clk 0:02:59]} 5. d4 {[%clk 0:02:51]}  cxd4 {[%clk 0:02:43]} 6. Nxd4 {[%clk 0:02:50]}  e5 {[%clk 0:02:44]} 7. Nb3 {[%clk 0:02:48]}  Be7 {[%clk 0:02:40]} 8. c4 {[%clk 0:02:36]}  d4 {[%clk 0:02:25]} 9. e3 {[%clk 0:02:34]}  Nc6 {[%clk 0:02:03]} 10. exd4 {[%clk 0:02:18]}  Nxd4 {[%clk 0:02:03]} 11. Nxd4 {[%clk 0:02:15]}  exd4 {[%clk 0:02:03]} 12. Nd2 {[%clk 0:01:19]}  O-O {[%clk 0:02:02]} 13. Nb3 {[%clk 0:01:19]}  d3 {[%clk 0:02:03]} 14. Bd2 {[%clk 0:01:15]}  Bg4 {[%clk 0:01:55]} 15. Qc1 {[%clk 0:01:14]}  Be2 {[%clk 0:01:55]} 16. Re1 {[%clk 0:01:14]}  a5 {[%clk 0:01:36]} 17. Bc3 {[%clk 0:01:10]}  a4 {[%clk 0:01:33]} 18. Nd4 {[%clk 0:01:10]}  Bc5 {[%clk 0:01:04]} 19. Nxe2 {[%clk 0:01:10]}  Ng4 {[%clk 0:00:46]} 20. Qf4 {[%clk 0:00:38]}  Bxf2+ {[%clk 0:00:31]} 21. Kh1 {[%clk 0:00:37]}  Bxe1 {[%clk 0:00:32]} 22. Rxe1 {[%clk 0:00:36]}  dxe2 {[%clk 0:00:30]} 23. Qxg4 {[%clk 0:00:34]}  f6 {[%clk 0:00:30]} 24. Bd5+ {[%clk 0:00:32]}  Kh8 {[%clk 0:00:30]} 25. Rxe2 {[%clk 0:00:32]}  a3 {[%clk 0:00:30]} 26. b3 {[%clk 0:00:32]}  Rc8 {[%clk 0:00:30]} 27. Bb4 {[%clk 0:00:31]}  Re8 {[%clk 0:00:28]} 28. Rxe8+ {[%clk 0:00:19]}  Qxe8 {[%clk 0:00:29]} 29. h4 {[%clk 0:00:19]}  b5 {[%clk 0:00:24]} 30. Bxa3 {[%clk 0:00:18]}  bxc4 {[%clk 0:00:23]} 31. bxc4 {[%clk 0:00:19]}  Rb8 {[%clk 0:00:21]} 32. Qd1 {[%clk 0:00:16]}  Qe3 {[%clk 0:00:17]} 33. Kh2 {[%clk 0:00:14]}  Qxa3 {[%clk 0:00:16]} 34. Qe2 {[%clk 0:00:11]}  Rb2 {[%clk 0:00:16]} 0-1


[Site "https://www.chess.com"]

[Event "Titled Tuesday Blitz August 08 Early 2023"]
[White "Skliarov, Viktor"]
[Black "Ziatdinov, Raset"]
[WhiteFideId "14106736"]
[BlackFideId "2015323"]
[WhiteElo "2690"]
[BlackElo "2342"]
[Result "1-0"]
[Round "5"]
[TimeControl "180+1"]
[Date "2023.08.08"]
[WhiteClock "0:00:10"]
[BlackClock "0:00:21"]
[Board "71"]

1. e4 {[%clk 0:03:00]}  e6 {[%clk 0:02:59]} 2. d4 {[%clk 0:03:00]}  d5 {[%clk 0:03:00]} 3. e5 {[%clk 0:02:59]}  c5 {[%clk 0:03:00]} 4. c3 {[%clk 0:02:58]}  Nc6 {[%clk 0:03:01]} 5. Nf3 {[%clk 0:02:57]}  Bd7 {[%clk 0:03:01]} 6. a3 {[%clk 0:02:57]}  Rc8 {[%clk 0:02:59]} 7. b4 {[%clk 0:02:57]}  cxd4 {[%clk 0:02:52]} 8. cxd4 {[%clk 0:02:57]}  f6 {[%clk 0:02:50]} 9. Bd3 {[%clk 0:02:54]}  fxe5 {[%clk 0:02:50]} 10. dxe5 {[%clk 0:02:53]}  Nge7 {[%clk 0:02:50]} 11. O-O {[%clk 0:02:50]}  g6 {[%clk 0:02:43]} 12. Nbd2 {[%clk 0:02:31]}  Bg7 {[%clk 0:02:43]} 13. Bb2 {[%clk 0:02:32]}  O-O {[%clk 0:02:42]} 14. Nb3 {[%clk 0:02:31]}  b6 {[%clk 0:02:31]} 15. Rc1 {[%clk 0:02:30]}  Nf5 {[%clk 0:02:27]} 16. Qe2 {[%clk 0:02:12]}  Nh4 {[%clk 0:02:24]} 17. Nxh4 {[%clk 0:01:59]}  Qxh4 {[%clk 0:02:24]} 18. g3 {[%clk 0:01:59]}  Qe7 {[%clk 0:02:14]} 19. f4 {[%clk 0:01:58]}  a5 {[%clk 0:01:50]} 20. b5 {[%clk 0:01:50]}  Nd8 {[%clk 0:01:48]} 21. Rxc8 {[%clk 0:01:39]}  Bxc8 {[%clk 0:01:49]} 22. Nd4 {[%clk 0:01:39]}  Bd7 {[%clk 0:01:47]} 23. Rc1 {[%clk 0:01:33]}  Nb7 {[%clk 0:01:46]} 24. Nc6 {[%clk 0:01:28]}  Qe8 {[%clk 0:01:39]} 25. Bd4 {[%clk 0:01:27]}  Nd8 {[%clk 0:01:20]} 26. Qc2 {[%clk 0:01:21]}  Rf7 {[%clk 0:01:07]} 27. Bxb6 {[%clk 0:01:20]}  Nb7 {[%clk 0:00:59]} 28. a4 {[%clk 0:01:20]}  g5 {[%clk 0:00:57]} 29. Bxh7+ {[%clk 0:01:18]}  Kh8 {[%clk 0:00:57]} 30. Bg6 {[%clk 0:01:18]}  gxf4 {[%clk 0:00:53]} 31. Rf1 {[%clk 0:00:58]}  Bh6 {[%clk 0:00:46]} 32. Bxf7 {[%clk 0:00:52]}  Qxf7 {[%clk 0:00:44]} 33. Nd8 {[%clk 0:00:52]}  Qg7 {[%clk 0:00:41]} 34. Nxb7 {[%clk 0:00:45]}  fxg3 {[%clk 0:00:42]} 35. h3 {[%clk 0:00:45]}  Qxe5 {[%clk 0:00:36]} 36. Qg6 {[%clk 0:00:34]}  Be3+ {[%clk 0:00:26]} 37. Bxe3 {[%clk 0:00:33]}  Qxe3+ {[%clk 0:00:27]} 38. Kg2 {[%clk 0:00:17]}  Qe2+ {[%clk 0:00:27]} 39. Kxg3 {[%clk 0:00:17]}  Qxf1 {[%clk 0:00:27]} 40. Qh6+ {[%clk 0:00:11]}  Kg8 {[%clk 0:00:27]} 41. Qg5+ {[%clk 0:00:09]}  Kh8 {[%clk 0:00:23]} 42. Qd8+ {[%clk 0:00:08]}  Kg7 {[%clk 0:00:20]} 43. Qxd7+ {[%clk 0:00:08]}  Kf6 {[%clk 0:00:21]} 44. Qd8+ {[%clk 0:00:08]}  Ke5 {[%clk 0:00:21]} 45. Qc7+ {[%clk 0:00:05]}  Ke4 {[%clk 0:00:21]} 46. Nc5+ {[%clk 0:00:03]}  Kd4 {[%clk 0:00:22]} 47. Nxe6+ {[%clk 0:00:03]}  Kd3 {[%clk 0:00:17]} 48. Qf4 {[%clk 0:00:03]}  Qg1+ {[%clk 0:00:16]} 49. Kh4 {[%clk 0:00:04]}  Qe1+ {[%clk 0:00:15]} 50. Qg3+ {[%clk 0:00:04]}  Qxg3+ {[%clk 0:00:13]} 51. Kxg3 {[%clk 0:00:05]}  Kc4 {[%clk 0:00:14]} 52. Kf4 {[%clk 0:00:05]}  d4 {[%clk 0:00:14]} 53. Nxd4 {[%clk 0:00:05]}  Kxd4 {[%clk 0:00:15]} 54. b6 {[%clk 0:00:06]}  Kc4 {[%clk 0:00:16]} 55. b7 {[%clk 0:00:06]}  Kb4 {[%clk 0:00:17]} 56. b8=Q+ {[%clk 0:00:07]}  Kxa4 {[%clk 0:00:17]} 57. Qb6 {[%clk 0:00:08]}  Ka3 {[%clk 0:00:18]} 58. Qxa5+ {[%clk 0:00:08]}  Kb2 {[%clk 0:00:19]} 59. Qg5 {[%clk 0:00:09]}  Kc1 {[%clk 0:00:20]} 60. h4 {[%clk 0:00:10]}  Kc2 {[%clk 0:00:21]} 61. h5 {[%clk 0:00:10]}  Kb2 {[%clk 0:00:21]} 1-0


[Site "https://www.chess.com"]

[Event "Titled Tuesday Blitz August 08 Early 2023"]
[White "SmirnovAlexandrA"]
[Black "Gan-Od, Sereenen"]
[BlackFideId "4901304"]
[WhiteElo "2573"]
[BlackElo "2774"]
[Result "1-0"]
[Round "5"]
[TimeControl "180+1"]
[Date "2023.08.08"]
[WhiteClock "0:01:42"]
[BlackClock "0:00:49"]
[Board "74"]

1. e4 {[%clk 0:02:48]}  c6 {[%clk 0:01:47]} 2. d4 {[%clk 0:02:45]}  d5 {[%clk 0:01:47]} 3. e5 {[%clk 0:02:46]}  Bf5 {[%clk 0:01:36]} 4. Nf3 {[%clk 0:02:45]}  e6 {[%clk 0:01:36]} 5. Be2 {[%clk 0:02:46]}  Ne7 {[%clk 0:01:34]} 6. O-O {[%clk 0:02:46]}  Nd7 {[%clk 0:01:35]} 7. Nh4 {[%clk 0:02:43]}  h6 {[%clk 0:01:36]} 8. Be3 {[%clk 0:02:42]}  Bh7 {[%clk 0:01:36]} 9. Nd2 {[%clk 0:02:41]}  g5 {[%clk 0:01:36]} 10. Nhf3 {[%clk 0:02:40]}  Bg7 {[%clk 0:01:36]} 11. Nb3 {[%clk 0:02:35]}  Nf5 {[%clk 0:01:35]} 12. c4 {[%clk 0:02:32]}  Nxe3 {[%clk 0:01:33]} 13. fxe3 {[%clk 0:02:33]}  O-O {[%clk 0:01:33]} 14. Bd3 {[%clk 0:02:29]}  Bxd3 {[%clk 0:01:25]} 15. Qxd3 {[%clk 0:02:30]}  a5 {[%clk 0:01:24]} 16. a4 {[%clk 0:02:29]}  Qb6 {[%clk 0:01:24]} 17. Nbd2 {[%clk 0:02:20]}  Qa6 {[%clk 0:01:20]} 18. b3 {[%clk 0:02:15]}  Rad8 {[%clk 0:01:19]} 19. Rf2 {[%clk 0:02:12]}  dxc4 {[%clk 0:01:18]} 20. bxc4 {[%clk 0:02:12]}  Nxe5 {[%clk 0:01:17]} 21. Nxe5 {[%clk 0:02:07]}  Bxe5 {[%clk 0:01:17]} 22. Ne4 {[%clk 0:02:08]}  Bg7 {[%clk 0:01:16]} 23. Raf1 {[%clk 0:02:02]}  f5 {[%clk 0:01:15]} 24. Nc5 {[%clk 0:01:56]}  Qb6 {[%clk 0:01:07]} 25. Nxe6 {[%clk 0:01:53]}  Rfe8 {[%clk 0:01:07]} 26. Nxd8 {[%clk 0:01:53]}  Qxd8 {[%clk 0:01:07]} 27. Qxf5 {[%clk 0:01:53]}  Rxe3 {[%clk 0:01:05]} 28. d5 {[%clk 0:01:49]}  c5 {[%clk 0:01:03]} 29. Qg6 {[%clk 0:01:44]}  Re8 {[%clk 0:00:49]} 30. Rf7 {[%clk 0:01:42]} 1-0


[Site "https://www.chess.com"]

[Event "Titled Tuesday Blitz August 08 Early 2023"]
[White "Moral Garcia, Serafin"]
[Black "Aradhya, Garg"]
[WhiteFideId "2201925"]
[BlackFideId "25006746"]
[WhiteElo "2555"]
[BlackElo "2760"]
[Result "0-1"]
[Round "5"]
[TimeControl "180+1"]
[Date "2023.08.08"]
[WhiteClock "0:00:28"]
[BlackClock "0:01:22"]
[Board "77"]

1. e4 {[%clk 0:02:22]}  e5 {[%clk 0:02:59]} 2. Nf3 {[%clk 0:02:21]}  Nc6 {[%clk 0:02:59]} 3. Nc3 {[%clk 0:02:21]}  Nf6 {[%clk 0:02:59]} 4. Nxe5 {[%clk 0:02:22]}  Nxe5 {[%clk 0:02:57]} 5. d4 {[%clk 0:02:22]}  Ng6 {[%clk 0:02:48]} 6. e5 {[%clk 0:02:22]}  Ng8 {[%clk 0:02:48]} 7. Bc4 {[%clk 0:02:22]}  d5 {[%clk 0:02:48]} 8. Bxd5 {[%clk 0:02:22]}  c6 {[%clk 0:02:35]} 9. Bb3 {[%clk 0:02:22]}  N8e7 {[%clk 0:02:34]} 10. h4 {[%clk 0:02:14]}  h5 {[%clk 0:02:31]} 11. Bg5 {[%clk 0:02:10]}  Be6 {[%clk 0:02:29]} 12. Bxe6 {[%clk 0:02:07]}  fxe6 {[%clk 0:02:29]} 13. Ne4 {[%clk 0:02:06]}  Qa5+ {[%clk 0:02:29]} 14. Bd2 {[%clk 0:01:51]}  Qb6 {[%clk 0:02:29]} 15. Nd6+ {[%clk 0:01:51]}  Kd7 {[%clk 0:02:29]} 16. c3 {[%clk 0:01:38]}  Nf5 {[%clk 0:02:18]} 17. Nxf5 {[%clk 0:01:25]}  exf5 {[%clk 0:02:19]} 18. Qc2 {[%clk 0:01:24]}  Ne7 {[%clk 0:02:18]} 19. Bg5 {[%clk 0:01:24]}  g6 {[%clk 0:02:17]} 20. O-O {[%clk 0:01:18]}  Bh6 {[%clk 0:02:12]} 21. Bxe7 {[%clk 0:01:17]}  Kxe7 {[%clk 0:02:12]} 22. Rad1 {[%clk 0:01:08]}  Rhd8 {[%clk 0:02:11]} 23. f4 {[%clk 0:01:08]}  Rd5 {[%clk 0:02:08]} 24. Kh1 {[%clk 0:01:01]}  Rad8 {[%clk 0:02:05]} 25. Rd3 {[%clk 0:00:44]}  c5 {[%clk 0:02:04]} 26. Rg3 {[%clk 0:00:44]}  cxd4 {[%clk 0:02:02]} 27. cxd4 {[%clk 0:00:44]}  Rxd4 {[%clk 0:02:03]} 28. e6 {[%clk 0:00:43]}  Qxe6 {[%clk 0:02:02]} 29. Qc7+ {[%clk 0:00:41]}  R8d7 {[%clk 0:02:02]} 30. Qc8 {[%clk 0:00:41]}  Rd1 {[%clk 0:01:56]} 31. Qc5+ {[%clk 0:00:38]}  Kf7 {[%clk 0:01:54]} 32. Rf3 {[%clk 0:00:35]}  Qe2 {[%clk 0:01:22]} 33. Rxd1 {[%clk 0:00:30]}  Qxd1+ {[%clk 0:01:21]} 34. Kh2 {[%clk 0:00:28]}  Qd4 {[%clk 0:01:22]} 0-1


[Site "https://www.chess.com"]

[Event "Titled Tuesday Blitz August 08 Early 2023"]
[White "Jaferian, Koosha"]
[Black "Camilla_Lee"]
[WhiteFideId "12507440"]
[WhiteElo "2713"]
[BlackElo "2546"]
[Result "1/2-1/2"]
[Round "5"]
[TimeControl "180+1"]
[Date "2023.08.08"]
[WhiteClock "0:01:32"]
[BlackClock "0:01:46"]
[Board "78"]

1. Nf3 {[%clk 0:03:00]}  Nf6 {[%clk 0:02:58]} 2. b3 {[%clk 0:03:01]}  d5 {[%clk 0:02:57]} 3. Bb2 {[%clk 0:03:01]}  c6 {[%clk 0:02:52]} 4. g3 {[%clk 0:03:01]}  Bg4 {[%clk 0:02:52]} 5. Bg2 {[%clk 0:03:02]}  Nbd7 {[%clk 0:02:49]} 6. O-O {[%clk 0:03:02]}  e6 {[%clk 0:02:49]} 7. d4 {[%clk 0:03:01]}  Bxf3 {[%clk 0:02:45]} 8. Bxf3 {[%clk 0:03:01]}  Bd6 {[%clk 0:02:46]} 9. Nd2 {[%clk 0:03:00]}  e5 {[%clk 0:02:45]} 10. dxe5 {[%clk 0:02:57]}  Bxe5 {[%clk 0:02:43]} 11. Qc1 {[%clk 0:02:55]}  Bxb2 {[%clk 0:02:36]} 12. Qxb2 {[%clk 0:02:56]}  O-O {[%clk 0:02:36]} 13. e4 {[%clk 0:02:51]}  dxe4 {[%clk 0:02:36]} 14. Nxe4 {[%clk 0:02:52]}  Nxe4 {[%clk 0:02:36]} 15. Bxe4 {[%clk 0:02:53]}  Qf6 {[%clk 0:02:34]} 16. Qxf6 {[%clk 0:02:37]}  Nxf6 {[%clk 0:02:35]} 17. Bf3 {[%clk 0:02:37]}  Rad8 {[%clk 0:02:32]} 18. Rad1 {[%clk 0:02:36]}  Rfe8 {[%clk 0:02:31]} 19. Kg2 {[%clk 0:02:29]}  Kf8 {[%clk 0:02:28]} 20. c4 {[%clk 0:02:30]}  Rxd1 {[%clk 0:02:25]} 21. Rxd1 {[%clk 0:02:29]}  Ke7 {[%clk 0:02:26]} 22. g4 {[%clk 0:02:29]}  Nd7 {[%clk 0:02:18]} 23. Be4 {[%clk 0:02:22]}  h6 {[%clk 0:02:18]} 24. f4 {[%clk 0:02:18]}  Nc5 {[%clk 0:02:18]} 25. Bc2 {[%clk 0:02:13]}  Rd8 {[%clk 0:02:12]} 26. Rxd8 {[%clk 0:02:10]}  Kxd8 {[%clk 0:02:12]} 27. Kf3 {[%clk 0:02:10]}  Ke7 {[%clk 0:02:12]} 28. h4 {[%clk 0:01:59]}  a5 {[%clk 0:02:10]} 29. g5 {[%clk 0:01:57]}  hxg5 {[%clk 0:02:05]} 30. fxg5 {[%clk 0:01:56]}  g6 {[%clk 0:02:06]} 31. Ke3 {[%clk 0:01:50]}  Kd6 {[%clk 0:02:01]} 32. Bd1 {[%clk 0:01:48]}  Ne6 {[%clk 0:01:58]} 33. Bg4 {[%clk 0:01:32]}  Ke5 {[%clk 0:01:46]} 1/2-1/2


[Site "https://www.chess.com"]

[Event "Titled Tuesday Blitz August 08 Early 2023"]
[White "Fus, Jakub"]
[Black "Gontcharov, Vladislav"]
[WhiteFideId "1193023"]
[BlackFideId "4123492"]
[WhiteElo "2670"]
[BlackElo "2530"]
[Result "1/2-1/2"]
[Round "5"]
[TimeControl "180+1"]
[Date "2023.08.08"]
[WhiteClock "0:00:34"]
[BlackClock "0:00:15"]
[Board "81"]

1. e4 {[%clk 0:03:00]}  e6 {[%clk 0:02:59]} 2. d4 {[%clk 0:02:59]}  d5 {[%clk 0:02:59]} 3. exd5 {[%clk 0:03:00]}  exd5 {[%clk 0:02:59]} 4. Nf3 {[%clk 0:03:01]}  Nc6 {[%clk 0:02:59]} 5. Bb5 {[%clk 0:03:01]}  Bd6 {[%clk 0:02:59]} 6. c4 {[%clk 0:03:01]}  dxc4 {[%clk 0:02:58]} 7. d5 {[%clk 0:03:02]}  a6 {[%clk 0:02:58]} 8. Ba4 {[%clk 0:03:01]}  b5 {[%clk 0:02:58]} 9. dxc6 {[%clk 0:03:01]}  bxa4 {[%clk 0:02:58]} 10. O-O {[%clk 0:03:00]}  Ne7 {[%clk 0:02:55]} 11. Nbd2 {[%clk 0:03:00]}  Be6 {[%clk 0:02:09]} 12. Qxa4 {[%clk 0:02:59]}  Rb8 {[%clk 0:02:07]} 13. Nxc4 {[%clk 0:02:54]}  Rb4 {[%clk 0:02:03]} 14. Nxd6+ {[%clk 0:02:53]}  Qxd6 {[%clk 0:02:02]} 15. Qxa6 {[%clk 0:02:50]}  O-O {[%clk 0:02:02]} 16. b3 {[%clk 0:02:41]}  Bd5 {[%clk 0:01:38]} 17. Ba3 {[%clk 0:02:27]}  Bxf3 {[%clk 0:01:30]} 18. Bxb4 {[%clk 0:02:27]}  Qg6 {[%clk 0:01:30]} 19. g3 {[%clk 0:02:27]}  Qg4 {[%clk 0:01:13]} 20. Qd3 {[%clk 0:01:18]}  Ng6 {[%clk 0:00:29]} 21. Bxf8 {[%clk 0:01:11]}  Nf4 {[%clk 0:00:23]} 22. Qxf3 {[%clk 0:00:33]}  Qxf3 {[%clk 0:00:23]} 23. gxf4 {[%clk 0:00:32]}  Qg4+ {[%clk 0:00:23]} 24. Kh1 {[%clk 0:00:33]}  Qf3+ {[%clk 0:00:23]} 25. Kg1 {[%clk 0:00:33]}  Qg4+ {[%clk 0:00:15]} 26. Kh1 {[%clk 0:00:34]}  Qf3+ {[%clk 0:00:15]} 27. Kg1 {[%clk 0:00:34]} 1/2-1/2


[Site "https://www.chess.com"]

[Event "Titled Tuesday Blitz August 08 Early 2023"]
[White "Petrosian, Karlen"]
[Black "Glavina, Pablo"]
[WhiteFideId "4176146"]
[BlackFideId "100234"]
[WhiteElo "2665"]
[BlackElo "2515"]
[Result "1-0"]
[Round "5"]
[TimeControl "180+1"]
[Date "2023.08.08"]
[WhiteClock "0:00:10"]
[BlackClock "0:00:47"]
[Board "83"]

1. e4 {[%clk 0:02:48]}  c6 {[%clk 0:03:00]} 2. Nf3 {[%clk 0:02:44]}  d5 {[%clk 0:03:01]} 3. d3 {[%clk 0:02:44]}  Bg4 {[%clk 0:02:58]} 4. h3 {[%clk 0:02:39]}  Bh5 {[%clk 0:02:58]} 5. g4 {[%clk 0:02:37]}  Bg6 {[%clk 0:02:58]} 6. h4 {[%clk 0:02:30]}  h5 {[%clk 0:02:57]} 7. Ne5 {[%clk 0:02:30]}  Bh7 {[%clk 0:02:58]} 8. g5 {[%clk 0:02:02]}  e6 {[%clk 0:02:56]} 9. Qxh5 {[%clk 0:01:56]}  Qc7 {[%clk 0:02:33]} 10. Nf3 {[%clk 0:01:45]}  Na6 {[%clk 0:02:16]} 11. g6 {[%clk 0:01:39]}  fxg6 {[%clk 0:02:12]} 12. Qg4 {[%clk 0:01:39]}  Nc5 {[%clk 0:02:08]} 13. e5 {[%clk 0:01:37]}  O-O-O {[%clk 0:02:01]} 14. Nc3 {[%clk 0:01:22]}  Kb8 {[%clk 0:01:48]} 15. Bf4 {[%clk 0:01:19]}  Nh6 {[%clk 0:01:46]} 16. Qg2 {[%clk 0:01:12]}  Nf5 {[%clk 0:01:44]} 17. Ng5 {[%clk 0:01:04]}  Bg8 {[%clk 0:01:43]} 18. Qg4 {[%clk 0:00:54]}  Be7 {[%clk 0:01:37]} 19. Be2 {[%clk 0:00:51]}  Re8 {[%clk 0:01:32]} 20. d4 {[%clk 0:00:34]}  Nxd4 {[%clk 0:01:29]} 21. O-O-O {[%clk 0:00:31]}  Nf5 {[%clk 0:01:22]} 22. Kb1 {[%clk 0:00:26]}  Nd7 {[%clk 0:01:18]} 23. Bd3 {[%clk 0:00:24]}  Nxe5 {[%clk 0:01:16]} 24. Qe2 {[%clk 0:00:23]}  Nxd3 {[%clk 0:01:15]} 25. Bxc7+ {[%clk 0:00:22]}  Kxc7 {[%clk 0:01:15]} 26. cxd3 {[%clk 0:00:21]}  Bd6 {[%clk 0:01:12]} 27. d4 {[%clk 0:00:20]}  e5 {[%clk 0:01:10]} 28. dxe5 {[%clk 0:00:21]}  Bxe5 {[%clk 0:01:11]} 29. Qd2 {[%clk 0:00:19]}  Bf6 {[%clk 0:01:09]} 30. Nf3 {[%clk 0:00:19]}  Be6 {[%clk 0:01:08]} 31. Ka1 {[%clk 0:00:18]}  Bd7 {[%clk 0:01:05]} 32. Qf4+ {[%clk 0:00:18]}  Kc8 {[%clk 0:01:05]} 33. Rdg1 {[%clk 0:00:18]}  Rh6 {[%clk 0:01:04]} 34. a3 {[%clk 0:00:17]}  Reh8 {[%clk 0:01:04]} 35. Ka2 {[%clk 0:00:16]}  Be6 {[%clk 0:01:03]} 36. Re1 {[%clk 0:00:14]}  Bf7 {[%clk 0:01:02]} 37. Qg4 {[%clk 0:00:12]}  d4+ {[%clk 0:01:01]} 38. Ka1 {[%clk 0:00:10]}  dxc3 {[%clk 0:01:02]} 39. bxc3 {[%clk 0:00:10]}  Bd5 {[%clk 0:01:01]} 40. Kb1 {[%clk 0:00:11]}  Kc7 {[%clk 0:00:59]} 41. Qf4+ {[%clk 0:00:11]}  Kb6 {[%clk 0:00:58]} 42. c4 {[%clk 0:00:11]}  Bxf3 {[%clk 0:00:53]} 43. Qxf3 {[%clk 0:00:11]}  Rxh4 {[%clk 0:00:53]} 44. Rxh4 {[%clk 0:00:11]}  Rxh4 {[%clk 0:00:54]} 45. Qb3+ {[%clk 0:00:11]}  Kc7 {[%clk 0:00:53]} 46. Qb4 {[%clk 0:00:11]}  Rd4 {[%clk 0:00:50]} 47. Qa5+ {[%clk 0:00:11]}  Kb8 {[%clk 0:00:47]} 48. Re8+ {[%clk 0:00:10]} 1-0


[Site "https://www.chess.com"]